lending/lending_fUSD_20260325
["ID","MTS","AMOUNT","RATE_DAILY","PERIOD"]
[408902424,1774421442436,-250.0,0.00014952,2]
[408902425,1774421442445,-500.0,0.00014952,2]
[408902426,1774421442455,-250.0,0.00014952,2]
[408902427,1774421442464,-174.61919141,0.00014952,2]
[408902428,1774421442473,-250.0,0.00014952,2]
[408902429,1774421442483,-500.0,0.00014952,2]
[408902430,1774421442493,-250.0,0.00014952,2]
[408902431,1774421442502,-500.0,0.00014952,2]
[408902432,1774421442511,-250.0,0.00014952,2]
[408902433,1774421442521,-250.0,0.00014952,2]
[408902434,1774421442530,-250.0,0.00014952,2]
[408902435,1774421442540,-200.0,0.00014952,2]
[408902436,1774421442549,-250.0,0.00014952,2]
[408902437,1774421442558,-825.50162876,0.00014952,2]
[408902438,1774421442567,-743.50770149,0.00014952,2]
[408902439,1774421442576,-276.35047152,0.00014952,2]
[408902440,1774421442586,-279.9045709,0.00014952,2]
[408902441,1774421442596,-392.86549759,0.00014952,2]
[408902442,1774421442607,-300.0,0.00015,2]
[408902443,1774421442616,-500.0,0.00015007,2]
[408902445,1774421442626,-151.0,0.00015007,2]
[408902446,1774421442635,-165.23,0.00015043,2]
[408902447,1774421442645,-746.4284856,0.00015051,2]
[408902448,1774421442654,-500.0,0.00015062,2]
[408902449,1774421442664,-151.0,0.00015062,2]
[408902450,1774421442673,-719.66,0.00015068,2]
[408902451,1774421442683,-900.0,0.00015068,2]
[408902452,1774421442693,-315.443929,0.00015087,7]
[408902453,1774421442702,-502.069925,0.00015089,2]
[408902454,1774421442712,-502.069925,0.00015089,2]
[408902455,1774421442721,-502.069925,0.00015089,2]
[408902456,1774421442731,-502.069925,0.00015089,2]
[408902457,1774421442740,-500.0,0.00015117,2]
[408902458,1774421442749,-151.0,0.00015117,2]
[408902459,1774421442759,-500.0,0.00015172,2]
[408902460,1774421442768,-151.0,0.00015172,2]
[408902461,1774421442777,-197.2241,0.000152,2]
[408902462,1774421442787,-500.0,0.00015227,2]
[408902463,1774421442796,-151.0,0.00015227,2]
[408902464,1774421442806,-524.080279,0.00015247,2]
[408902465,1774421442815,-524.080279,0.00015247,2]
[408902466,1774421442825,-524.080279,0.00015247,2]
[408902467,1774421442834,-524.080279,0.00015247,2]
[408902468,1774421442843,-237.213281,0.00015247,2]
[408902469,1774421442853,-237.213281,0.00015247,2]
[408902470,1774421442862,-237.213281,0.00015247,2]
[408902471,1774421442872,-237.213281,0.00015247,2]
[408902472,1774421442882,-1093.243076,0.00015247,2]
[408902473,1774421442891,-1093.243076,0.00015247,2]
[408902474,1774421442900,-1093.243076,0.00015247,2]
[408902475,1774421442909,-1093.243076,0.00015247,2]
[408902476,1774421442919,-151.0,0.00015247,2]
[408902477,1774421442928,-151.0,0.00015247,2]
[408902478,1774421442938,-388.593738,0.00015247,2]
[408902479,1774421442948,-388.593738,0.00015247,2]
[408902480,1774421442958,-151.0,0.00015247,2]
[408902481,1774421442968,-388.593738,0.00015247,2]
[408902482,1774421442977,-388.593738,0.00015247,2]
[408902483,1774421442986,-158.652186,0.00015249,2]
[408902484,1774421442995,-158.652186,0.00015249,2]
[408902485,1774421443008,-158.652186,0.00015249,2]
[408902486,1774421443018,-158.652186,0.00015249,2]
[408902487,1774421443027,-151.0,0.00015249,2]
[408902488,1774421443037,-151.0,0.00015249,2]
[408902489,1774421443047,-500.0,0.00015282,2]
[408902490,1774421443057,-151.0,0.00015282,2]
[408902491,1774421443067,-1000.0,0.000153,5]
[408902492,1774421443076,-500.0,0.00015337,2]
[408902493,1774421443086,-151.0,0.00015337,2]
[408902494,1774421443095,-3231.0,0.00015338,2]
[408902495,1774421443105,-350.0,0.00015342,2]
[408902496,1774421443115,-719.66,0.00015342,2]
[408902497,1774421443125,-521.0,0.0001536,2]
[408902498,1774421443134,-433.0,0.00015375,2]
[408902500,1774421443145,-500.0,0.00015392,2]
[408902501,1774421443154,-151.0,0.00015392,2]
[408902502,1774421443164,-1345.0,0.00015395,2]
[408902503,1774421443174,-621.0,0.00015395,2]
[408902504,1774421443183,-1045.0,0.00015395,2]
[408902505,1774421443196,-3516.0,0.00015395,2]
[408902506,1774421443207,-150.0,0.00015395,2]
[408902507,1774421443216,-1262.0,0.00015395,2]
[408902508,1774421443225,-924.0,0.00015395,2]
[408902509,1774421443234,-1216.0,0.00015395,2]
[408902510,1774421443244,-3763.0,0.00015395,2]
[408902511,1774421443253,-2467.0,0.00015395,2]
[408902512,1774421443267,-417.966,0.00015395,2]
[408902513,1774421443279,-1300.0,0.000154,5]
[408902514,1774421443288,-500.0,0.00015447,2]
[408902515,1774421443299,-151.0,0.00015447,2]
[408902516,1774421443308,-1400.0,0.00015452,2]
[408902517,1774421443317,-1200.0,0.00015452,2]
[408902518,1774421443326,-151.0,0.000155,2]
[408902519,1774421443335,-181.08010149,0.000155,2]
[408902520,1774421443344,-200.0,0.000155,2]
[408902521,1774421443353,-771.01748645,0.000155,2]
[408902522,1774421443362,-290.26104003,0.000155,2]
[408902523,1774421443371,-200.0,0.000155,5]
[408902524,1774421443379,-500.0,0.00015502,2]
[408902525,1774421443388,-151.0,0.00015502,2]
[408902526,1774421443402,-150.0,0.00015553,2]
[408902527,1774421443412,-150.0,0.00015553,2]
[408902528,1774421443421,-236.14849136,0.00015553,2]
[408902529,1774421443430,-3746.0,0.00015562,2]
[408902530,1774421443440,-209.591,0.00015586,2]
[408902531,1774421443451,-4324.922,0.00015586,2]
[408902532,1774421443460,-151.0,0.00015586,2]
[408902533,1774421443469,-151.0,0.00015586,2]
[408902534,1774421443479,-548.3108,0.00015586,2]
[408902535,1774421443488,-548.3108,0.00015586,2]
[408902536,1774421443497,-548.3108,0.00015586,2]
[408902537,1774421443507,-548.3108,0.00015586,2]
[408902538,1774421443516,-151.0,0.00015586,2]
[408902539,1774421443525,-883.62,0.000156,2]
[408902540,1774421443534,-3319.08,0.000156,2]
[408902541,1774421443543,-3300.19,0.000156,2]
[408902542,1774421443554,-200.0,0.000156,5]
[408902543,1774421443563,-3231.0,0.00015614,2]
[408902544,1774421443573,-719.73080658,0.00015616,2]
[408902545,1774421443587,-2351.0,0.00015644,2]
[408902546,1774421443598,-5888.0,0.00015672,2]
[408902547,1774421443608,-3150.62571265,0.0001568,2]
[408902548,1774421443617,-1569.0,0.0001568,2]
[408902549,1774421443626,-151.0,0.0001568,2]
[408902550,1774421443635,-151.0,0.0001568,2]
[408902551,1774421443645,-151.0,0.0001568,2]
[408902552,1774421443654,-1000.0,0.00015685,2]
[408902553,1774421443663,-1000.0,0.00015685,2]
[408902554,1774421443673,-2595.07,0.000157,2]
[408902555,1774421443682,-200.0,0.000157,5]
[408902556,1774421443692,-152.29608993,0.00015728,2]
[408902557,1774421443702,-215.0,0.00015753,2]
[408902558,1774421443711,-200.0,0.000158,5]
[408902559,1774421443721,-2000.0,0.000158,2]
[408902560,1774421443731,-700.0,0.00015818,2]
[408902561,1774421443740,-165.23,0.00015835,2]
[408902562,1774421443750,-150.0,0.00015838,2]
[408902563,1774421443759,-150.0,0.00015839,2]
[408902564,1774421443769,-835.07653,0.0001584,2]
[408902565,1774421443778,-835.07653,0.0001584,2]
[408902566,1774421443788,-835.07653,0.0001585,2]
[408902567,1774421443798,-487.0112185,0.00015851,2]
[408902568,1774421443807,-150.0,0.00015861,2]
[408902569,1774421443817,-150.0,0.00015864,2]
[408902570,1774421443826,-500.0,0.00015872,2]
[408902571,1774421443835,-200.0,0.00015872,2]
[408902572,1774421443845,-3231.0,0.000159,2]
[408902573,1774421443854,-534.10466753,0.000159,2]
[408902574,1774421443864,-374.34629405,0.000159,2]
[408902575,1774421443873,-433.22578937,0.000159,2]
[408902576,1774421443883,-1143.52538253,0.000159,2]
[408902577,1774421443892,-10000.0,0.000159,2]
[408902578,1774421443902,-312.0,0.000159,2]
[408902579,1774421443911,-306.0,0.000159,2]
[408902580,1774421443921,-810.0,0.000159,5]
[408902581,1774421443930,-167.64656967,0.000159,2]
[408902582,1774421443939,-560.03261176,0.000159,2]
[408902583,1774421443949,-3926.13380305,0.000159,2]
[408902584,1774421443958,-999.0,0.000159,2]
[408902585,1774421443968,-476.32540456,0.000159,2]
[408902586,1774421443978,-158.0,0.000159,5]
[408902587,1774421443998,-236.0,0.000159,5]
[408902588,1774421444008,-239.34,0.00015905,2]
[408902589,1774421444017,-150.0,0.00015941,2]
[408902590,1774421444027,-902.29,0.00015942,2]
[408902591,1774421444037,-150.0,0.00015944,2]
[408902592,1774421444046,-502.93024548,0.00015973,2]
[408902593,1774421444055,-349.49866437,0.00015973,2]
[408902594,1774421444065,-500.0,0.00015973,2]
[408902595,1774421444074,-500.0,0.00015973,2]
[408902596,1774421444084,-500.0,0.00015973,2]
[408902597,1774421444093,-500.0,0.00015973,2]
[408902598,1774421444103,-500.0,0.00015973,2]
[408902599,1774421444113,-500.0,0.00015973,2]
[408902600,1774421444122,-384.45811669,0.00015973,2]
[408902601,1774421444132,-501.96682741,0.00015973,2]
[408902602,1774421444142,-500.58525136,0.00015973,2]
[408902603,1774421444151,-500.0,0.00015973,2]
[408902604,1774421444161,-407.9868591,0.00015973,2]
[408902605,1774421444171,-500.0,0.00015973,2]
[408902606,1774421444181,-500.0,0.00015973,2]
[408902607,1774421444190,-500.0,0.00015973,2]
[408902608,1774421444200,-160.15749861,0.00015973,2]
[408902609,1774421444210,-500.0,0.00015973,2]
[408902610,1774421444219,-500.0,0.00015973,2]
[408902611,1774421444229,-500.0,0.00015973,2]
[408902612,1774421444238,-500.0,0.00015973,2]
[408902613,1774421444247,-500.0,0.00015973,2]
[408902614,1774421444259,-500.0,0.00015973,2]
[408902615,1774421444269,-500.0,0.00015973,2]
[408902616,1774421444279,-500.0,0.00015973,2]
[408902617,1774421444288,-500.0,0.00015973,2]
[408902618,1774421444298,-158.652186,0.00015973,2]
[408902619,1774421444308,-158.652186,0.00015973,2]
[408902620,1774421444318,-158.652186,0.00015973,2]
[408902621,1774421444327,-158.652186,0.00015973,2]
[408902622,1774421444336,-151.0,0.00015973,2]
[408902623,1774421444345,-151.0,0.00015973,2]
[408902624,1774421444354,-150.0,0.00015984,2]
[408902625,1774421444365,-150.0,0.00015988,2]
[408902626,1774421444374,-258.39471055,0.0001599,2]
[408902627,1774421444384,-258.39471055,0.0001599,2]
[408902628,1774421444393,-151.0,0.00015997,2]
[408902629,1774421444402,-6760.3487081,0.00015997,2]
[408902630,1774421444412,-3458.8658787,0.00015997,2]
[408902631,1774421444421,-382781.5789298,0.00015997,2]
[408902632,1774421444431,-151.0,0.00015997,2]
[408902633,1774421444441,-151.0,0.00015997,2]
[408902634,1774421444451,-151.0,0.00015997,2]
[408902635,1774421444460,-151.0,0.00015997,2]
[408902636,1774421444470,-548.3108,0.00015997,2]
[408902637,1774421444479,-548.3108,0.00015997,2]
[408902638,1774421444489,-548.3108,0.00015997,2]
[408902639,1774421444498,-548.3108,0.00015997,2]
[408902640,1774421444508,-151.0,0.00015997,2]
[408902641,1774421444518,-524.080279,0.00015997,2]
[408902642,1774421444527,-524.080279,0.00015997,2]
[408902643,1774421444537,-524.080279,0.00015997,2]
[408902644,1774421444546,-524.080279,0.00015997,2]
[408902645,1774421444555,-237.213281,0.00015997,2]
[408902646,1774421444565,-237.213281,0.00015997,2]
[408902647,1774421444575,-237.213281,0.00015997,2]
[408902648,1774421444584,-237.213281,0.00015997,2]
[408902649,1774421444594,-1093.243076,0.00015997,2]
[408902650,1774421444603,-1093.243076,0.00015997,2]
[408902651,1774421444612,-1093.243076,0.00015997,2]
[408902652,1774421444622,-1093.243076,0.00015997,2]
[408902653,1774421444632,-502.069925,0.00015997,2]
[408902654,1774421444642,-502.069925,0.00015997,2]
[408902655,1774421444651,-502.069925,0.00015997,2]
[408902656,1774421444661,-502.069925,0.00015997,2]
[408902657,1774421444671,-151.0,0.00015997,2]
[408902658,1774421444681,-151.0,0.00015997,2]
[408902659,1774421444691,-388.593738,0.00015997,2]
[408902660,1774421444947,-388.593738,0.00015997,2]
[408902661,1774421444960,-151.0,0.00015997,2]
[408902662,1774421444969,-388.593738,0.00015997,2]
[408902663,1774421444979,-388.593738,0.00015997,2]
[408902664,1774421444989,-984258.4802325,0.00016,2]
[408902667,1774421445585,-151.0,0.0001341,2]
[408902668,1774421445594,-151.0,0.0001341,2]
[408902669,1774421445603,-3305.0,0.00016,2]
[408902670,1774421445614,-55803.16412343,0.00016,2]
[408902671,1774421445625,-560415.28479991,0.00016,2]
[408902672,1774421445640,-3302.55053612,0.00016,2]
[408902673,1774421445653,-671.00272448,0.00016,2]
[408902674,1774421445665,-394.46793202,0.00016,2]
[408902675,1774421445802,-46263.8428294,0.00016,2]
[408902742,1774421562859,2529.91528502,0.00011852,2]
[408902749,1774421925961,2470.09471498,0.0001265,2]
[408902750,1774421925984,5000.01,0.0001265,2]
[408902751,1774421926005,5000.01,0.0001265,2]
[408902752,1774421926025,3851.5488303,0.0001265,2]
[408902753,1774422054886,244.26094394,0.00012635,2]
[408902763,1774422255909,558.0,0.00017,60]
[408902764,1774422268386,327.9087,0.00012624,2]
[408902765,1774422542015,167.64,9.467e-05,2]
[408902766,1774422554125,-300.0,0.00011891,2]
[408902767,1774422554144,-6926.41,0.00011892,2]
[408902768,1774422554164,-3304.99,0.00011892,2]
[408902769,1774422554183,-15186.53,0.00012025,2]
[408902770,1774422554203,-208.76258561,0.00012068,2]
[408902771,1774422554222,-500.0,0.00012168,2]
[408902772,1774422554241,-1348.22026476,0.00012215,2]
[408902773,1774422555472,-651.77973524,0.00012215,2]
[408902774,1774422555499,-354.58,0.000123,2]
[408902775,1774422562065,-447.18349134,0.00012624,2]
[408902776,1774422562169,-5000.01,0.00012624,2]
[408902777,1774422564434,-5000.01,0.00012624,2]
[408902778,1774422564524,-5000.01,0.00012624,2]
[408902779,1774422564618,-5000.01,0.00012624,2]
[408902780,1774422564714,-5000.01,0.00012624,2]
[408902781,1774422564808,-5000.01,0.00012624,2]
[408902782,1774422564907,-5000.01,0.00012624,2]
[408902783,1774422567459,-5000.01,0.00012624,2]
[408902784,1774422570680,-5000.01,0.00012624,2]
[408902785,1774422570770,-5000.01,0.00012624,2]
[408902786,1774422570904,-5000.01,0.00012624,2]
[408902787,1774422571019,-5000.01,0.00012624,2]
[408902788,1774422571121,-5000.01,0.00012624,2]
[408902789,1774422571214,-5000.01,0.00012624,2]
[408902790,1774422573713,-5000.01,0.00012624,2]
[408902791,1774422576498,-5000.01,0.00012624,2]
[408902792,1774422576619,-5000.01,0.00012624,2]
[408902793,1774422576718,-5000.01,0.00012624,2]
[408902794,1774422576821,-5000.01,0.00012624,2]
[408902795,1774422576922,-5000.01,0.00012624,2]
[408902796,1774422577064,-5000.01,0.00012624,2]
[408902797,1774422581265,1026.0,0.000118,3]
[408902811,1774422612431,5533.0,0.000118,5]
[408902812,1774422612659,157.0,0.000117,3]
[408902815,1774422631763,-862.731951,0.00012561,2]
[408902816,1774422631774,-300.0,0.00012623,2]
[408902817,1774422631784,-495.26921597,0.00012623,2]
[408902818,1774422631796,-704.73078403,0.00012623,2]
[408902819,1774422631805,-304.0,0.00012623,2]
[408902820,1774422631815,-1118.91994959,0.00012624,2]
[408902821,1774422631826,-91.37603369,0.00012624,2]
[408902822,1774422631835,-16029.67644338,0.00012624,2]
[408902823,1774422631847,-3331.55408255,0.00012624,2]
[408902824,1774422631858,-1715.35927846,0.00012624,2]
[408902825,1774422631874,-128740.14790427,0.00012624,2]
[408902826,1774422631883,-131866.75446086,0.00012624,2]
[408902827,1774422631894,-44142.56448478,0.00012624,2]
[408902828,1774422631906,-63393.00085281,0.00012624,2]
[408902829,1774422631917,-9811.75002247,0.00012624,2]
[408902832,1774422637777,-7906.75379404,0.00012624,2]
[408902834,1774422637840,-605.91046908,0.00012624,2]
[408902835,1774422637852,-500.03289567,0.00012624,2]
[408902836,1774422637865,-314.00043338,0.00012624,2]
[408902837,1774422637875,-403.18886614,0.00012624,2]
[408902838,1774422637887,-1451.78563122,0.00012624,2]
[408902839,1774422637902,-3096.66028955,0.00012624,2]
[408902840,1774422637912,-11566.98207339,0.00012635,2]
[408902841,1774422637922,-152.88995442,0.000127,2]
[408902842,1774422637932,-157.64890765,0.000127,2]
[408902843,1774422637941,-200.0,0.000127,4]
[408902844,1774422637951,-150.0,0.00012713,2]
[408902845,1774422637960,-67389.12935201,0.00012714,2]
[408902846,1774422637970,-5044.15839813,0.00012724,2]
[408902847,1774422637979,-3371.2349,0.00012724,2]
[408902848,1774422637988,-92936.4417,0.00012724,2]
[408902849,1774422637998,-7633.7145,0.00012735,2]
[408902850,1774422638007,-1861.5494,0.00012735,2]
[408902851,1774422638017,-153.27466148,0.00012735,2]
[408902852,1774422638026,-243.733,0.00012735,2]
[408902853,1774422638036,-4729.776,0.00012735,2]
[408902854,1774422638045,-15295.61198978,0.00012735,2]
[408902855,1774422638054,-1484.75578259,0.00012735,2]
[408902856,1774422638063,-195.45128948,0.00012736,2]
[408902857,1774422638073,-2306.71,0.00012774,2]
[408902858,1774422638083,-500.0,0.000128,4]
[408902859,1774422638092,-166.66,0.0001282,2]
[408902860,1774422638102,-151.0,0.00012827,2]
[408902861,1774422638111,-294.6689732,0.00012827,2]
[408902862,1774422638122,-200.0,0.00012827,2]
[408902863,1774422638132,-151.0,0.00012827,2]
[408902864,1774422638141,-197.79122094,0.00012827,2]
[408902867,1774422638151,-500.0,0.00012827,2]
[408902869,1774422638160,-500.0,0.00012827,2]
[408902871,1774422638170,-500.0,0.00012827,2]
[408902873,1774422638179,-500.0,0.00012827,2]
[408902874,1774422638189,-643.86066983,0.00012827,2]
[408902876,1774422638198,-151.0,0.00012832,2]
[408902879,1774422638207,-5110.7848,0.00012836,2]
[408902881,1774422638216,-1000.0,0.00012836,2]
[408902882,1774422638226,-500.0,0.00012836,2]
[408902884,1774422638235,-500.0,0.00012857,2]
[408902886,1774422638244,-506.75169863,0.00012857,2]
[408902889,1774422638253,-591.77442886,0.00012873,2]
[408902892,1774422638262,-384.45811669,0.00012873,2]
[408902894,1774422638271,-160.15749861,0.00012873,2]
[408902897,1774422638281,-500.0,0.00012873,2]
[408902898,1774422638290,-347.34301147,0.00012873,2]
[408902901,1774422638299,-500.0,0.00012873,2]
[408902902,1774422638308,-500.0,0.00012873,2]
[408902904,1774422638318,-500.0,0.00012873,2]
[408902906,1774422638327,-500.0,0.00012873,2]
[408902908,1774422638336,-500.0,0.00012873,2]
[408902910,1774422638345,-500.0,0.00012873,2]
[408902912,1774422638354,-500.0,0.00012873,2]
[408902914,1774422638363,-151.0,0.00012883,2]
[408902916,1774422638372,-151.0,0.00012884,2]
[408902919,1774422638381,-4467.97,0.00012893,2]
[408902921,1774422638391,-9999.99,0.00012893,2]
[408902923,1774422638400,-9999.99,0.00012893,2]
[408902925,1774422638408,-5360.74,0.00012893,2]
[408902927,1774422638418,-2996.06,0.00012893,2]
[408902929,1774422638427,-12630.29,0.00012893,2]
[408902930,1774422638435,-5683.42,0.00012893,2]
[408902932,1774422638444,-431.06,0.00012893,2]
[408902934,1774422638453,-150.99,0.00012893,2]
[408902936,1774422638463,-3672.53,0.00012893,2]
[408902939,1774422638472,-299.99,0.00012893,2]
[408902941,1774422638481,-2173.14,0.00012893,2]
[408902943,1774422638491,-800.0,0.000129,4]
[408902945,1774422638500,-151.0,0.00012915,2]
[408902947,1774422638509,-151.0,0.00012921,2]
[408902949,1774422638518,-527.0,0.00012956,2]
[408902951,1774422638527,-412.0,0.00012956,2]
[408902953,1774422638536,-3746.0,0.00012959,2]
[408902955,1774422638547,-1707.0,0.00012982,2]
[408902957,1774422638556,-11566.98207334,0.00012998,2]
[408902959,1774422638564,-250.0,0.00013,2]
[408902960,1774422638573,-300.0,0.00013056,2]
[408902962,1774422638582,-15295.61198971,0.00013087,2]
[408902964,1774422638591,-300.92962121,0.0001309,2]
[408902966,1774422638600,-250.0,0.0001309,2]
[408902968,1774422638612,-500.0,0.0001311,2]
[408902970,1774422638621,-1484.75578259,0.00013187,2]
[408902972,1774422638630,-250.0,0.00013227,2]
[408902974,1774422638639,-166.66,0.00013243,2]
[408902976,1774422638648,-11771.84420018,0.00013322,2]
[408902978,1774422638657,-11566.98207334,0.00013361,2]
[408902980,1774422638666,-504.20352848,0.00013384,2]
[408902981,1774422638675,-1004.59632495,0.00013421,2]
[408902984,1774422638686,-1000.0,0.00013421,2]
[408902986,1774422638696,-1000.0,0.00013421,2]
[408902988,1774422638705,-1000.0,0.00013421,2]
[408902990,1774422638714,-1000.0,0.00013421,2]
[408902991,1774422638724,-502.68538186,0.00013421,2]
[408902993,1774422638733,-1000.0,0.00013421,2]
[408902995,1774422638742,-1000.0,0.00013421,2]
[408902997,1774422638751,-15295.61198971,0.00013438,2]
[408902999,1774422638760,-500.0,0.0001346,2]
[408903001,1774422638769,-500.0,0.0001346,2]
[408903003,1774422638778,-500.0,0.0001346,2]
[408903005,1774422638788,-1977.3758462,0.000135,2]
[408903007,1774422638797,-305.75,0.00013552,2]
[408903009,1774422638806,-1484.75578259,0.00013639,2]
[408903011,1774422638815,-166.66,0.00013667,2]
[408903013,1774422638824,-500.0,0.00013698,2]
[408903015,1774422638833,-500.0,0.00013698,2]
[408903017,1774422638842,-553.10600438,0.00013698,2]
[408903018,1774422638851,-500.0,0.00013698,2]
[408903019,1774422638860,-470.0,0.00013698,2]
[408903020,1774422638869,-500.0,0.00013698,2]
[408903021,1774422638879,-500.0,0.00013698,2]
[408903022,1774422638888,-500.0,0.00013698,2]
[408903023,1774422638897,-500.0,0.00013698,2]
[408903024,1774422638906,-500.0,0.00013698,2]
[408903025,1774422638915,-500.0,0.00013698,2]
[408903026,1774422638925,-500.0,0.00013698,2]
[408903027,1774422638934,-500.0,0.00013698,2]
[408903028,1774422638943,-509.43886537,0.00013698,2]
[408903029,1774422638952,-500.0,0.00013698,2]
[408903030,1774422638961,-500.0,0.00013698,2]
[408903031,1774422638970,-500.0,0.00013698,2]
[408903032,1774422638979,-385.92546908,0.00013698,2]
[408903033,1774422638988,-500.0,0.00013698,2]
[408903034,1774422638999,-500.0,0.00013698,2]
[408903035,1774422639008,-500.0,0.00013698,2]
[408903036,1774422639017,-515.02634622,0.00013698,2]
[408903037,1774422639026,-500.0,0.00013698,2]
[408903038,1774422639035,-500.0,0.00013698,2]
[408903039,1774422639044,-532.16065142,0.00013698,2]
[408903040,1774422639053,-500.0,0.00013698,2]
[408903041,1774422639062,-500.0,0.00013698,2]
[408903042,1774422639071,-500.0,0.00013698,2]
[408903043,1774422639080,-500.0,0.00013698,2]
[408903044,1774422639089,-520.54835623,0.00013698,2]
[408903045,1774422639098,-500.0,0.00013698,2]
[408903046,1774422639107,-500.0,0.00013698,2]
[408903047,1774422639116,-500.0,0.00013698,2]
[408903048,1774422639125,-500.0,0.00013698,2]
[408903049,1774422639135,-500.0,0.00013698,2]
[408903050,1774422639144,-500.0,0.00013698,2]
[408903051,1774422639153,-500.0,0.00013698,2]
[408903052,1774422639162,-500.0,0.00013698,2]
[408903053,1774422639172,-461.59962549,0.00013698,2]
[408903054,1774422639181,-500.0,0.00013698,2]
[408903055,1774422639191,-500.0,0.00013698,2]
[408903056,1774422639200,-500.0,0.00013698,2]
[408903057,1774422639209,-161.59374025,0.00013698,2]
[408903058,1774422639218,-500.0,0.00013698,2]
[408903059,1774422639227,-500.0,0.00013698,2]
[408903060,1774422639236,-638.95886171,0.00013698,2]
[408903061,1774422639245,-2595.07,0.000137,2]
[408903062,1774422639255,-926.72,0.000137,2]
[408903063,1774422639264,-2987.17,0.000137,2]
[408903064,1774422639273,-11566.98207334,0.00013723,2]
[408903065,1774422639282,-2000.0,0.00013742,2]
[408903066,1774422639291,-15295.61198971,0.0001379,2]
[408903067,1774422639300,-255.0,0.00013807,2]
[408903068,1774422639310,-1680.0,0.00013886,2]
[408903069,1774422639318,-1000.0,0.00013968,2]
[408903070,1774422639328,-1500.0,0.00013968,2]
[408903071,1774422639337,-1500.0,0.00013968,2]
[408903072,1774422639346,-1500.0,0.00013968,2]
[408903073,1774422639355,-991.97783969,0.00013968,2]
[408903074,1774422639365,-105.31471533,0.00013968,2]
[408903075,1774422639378,-325.23189441,0.00013968,2]
[408903076,1774422639388,-5000.0,0.00013995,2]
[408903077,1774422639397,-250.0,0.00013995,2]
[408903078,1774422639406,-155.0,0.00013999,2]
[408903079,1774422639415,-2970.17,0.00014,2]
[408903080,1774422639424,-150.0,0.00014,2]
[408903081,1774422639433,-507.0,0.00014,2]
[408903082,1774422639443,-198.39780813,0.00014008,2]
[408903083,1774422639452,-1000.0,0.00014008,2]
[408903084,1774422639461,-1000.0,0.00014008,2]
[408903085,1774422639473,-150.0,0.00014015,2]
[408903086,1774422639484,-500.0,0.00014017,2]
[408903087,1774422639493,-559.65581589,0.00014017,2]
[408903088,1774422639503,-192.00977276,0.00014017,2]
[408903089,1774422639512,-500.0,0.00014017,2]
[408903090,1774422639521,-500.0,0.00014017,2]
[408903091,1774422639531,-500.0,0.00014017,2]
[408903092,1774422639540,-500.25552119,0.00014017,2]
[408903093,1774422639549,-500.0,0.00014017,2]
[408903094,1774422639558,-501.06667076,0.00014017,2]
[408903095,1774422639567,-183.59,0.00014071,2]
[408903096,1774422639576,-1300.0,0.00014082,2]
[408903097,1774422639585,-1500.0,0.00014082,2]
[408903098,1774422639595,-11566.98207334,0.00014086,2]
[408903099,1774422639608,-166.66,0.0001409,2]
[408903100,1774422639617,-1484.75578259,0.00014091,2]
[408903101,1774422639626,-60000.0,0.00014115,2]
[408903102,1774422639635,-15295.61198971,0.00014142,2]
[408903103,1774422639644,-167.64,0.000142,2]